{"text_format":"1","workbook":"xlsx","n_sheets":10,"sheets":["Quadro Resumo","Diárias e Passag.","Mat. Cons.","STP Física e Tributos","Bolsas e Auxílios","STP Jurídica","Equipts.","Obras e Inst.","Custos Imputados","Cronograma Desembolso"],"not_rendered":{"charts":0,"images":2,"macros":1,"external_links":0,"defined_names":16,"comments":0,"pivot_tables":0},"unopened":[],"bounds":{"document_bytes":16777216,"sheet_cells":100000,"rows_first":2000,"rows_last":500,"rows_between":2000,"halvings":0,"cell_chars":16384,"cell_head_chars":4096},"cells_cut":0,"cells_raw":0,"read":"whole","date_system":"1900"}

{"sheet":"Quadro Resumo","index":0,"n_rows":30,"n_cols":6,"rows_kept":30,"cut":false,"hidden":false,"merged":[[31,0,31,4],[22,0,22,3],[24,0,24,3],[25,0,25,3],[27,0,27,3],[29,0,29,3],[23,1,23,2],[5,2,5,5],[6,2,6,5],[19,0,21,0],[21,1,21,3],[0,0,0,5],[1,0,1,5],[12,1,13,1],[18,0,18,3],[3,2,3,5],[4,2,4,5],[8,1,8,2],[9,0,17,0]]}
["PLANO DE APLICAÇÃO "]
["QUADRO RESUMO"]
[]
[null,"TÍTULO  DO PROJETO:  "]
[null,"INSTITUIÇÃO: "]
[null,"COORDENADOR(A):"]
[null,"GESTOR(A): "]
[]
[null,"Elementos de Despesa",null,"Cód.","Valor","%"]
["1. Despesa Custeio","1.1. Diárias",null,"3390.14.00",{"$f":"'Diárias e Passag.'!F11","v":0},{"$f":"E10*1/E$23*(($F$30-$F$27)-$F$24)","v":{"$error":"#DIV/0!"}}]
[null,"1.2. Passagens e despesas de locomoção",null,"3390.33.00",{"$f":"'Diárias e Passag.'!F19","v":0},{"$error":"#DIV/0!"}]
[null,"1.3. Material de Consumo",null,"3390.30.00",{"$f":"'Mat. Cons.'!E23","v":0},{"$error":"#DIV/0!"}]
[null,"1.4. Serviços de Terceiros - Pessoa Física","Pessoal Interno (UEM)","3390.36.00",{"$f":"'STP Física e Tributos'!F32","v":0},{"$error":"#DIV/0!"}]
[null,null,"Pessoal Externo","3390.36.00",{"$f":"'STP Física e Tributos'!F41","v":0},{"$error":"#DIV/0!"}]
[null,"     1.4.1. Obrigações Tributárias e Contributivas",null,"3390.47.00",{"$f":"'STP Física e Tributos'!F53","v":0},{"$error":"#DIV/0!"}]
[null,"1.5. Bolsas ",null,"3390.18.00",{"$f":"'Bolsas e Auxílios'!G13","v":0},{"$error":"#DIV/0!"}]
[null,"     1.5.1 Auxílio Financeiro - Bolsas",null,"3390.18.00",{"$f":"'Bolsas e Auxílios'!G22","v":0},{"$error":"#DIV/0!"}]
[null,"1.6. Serviços de Terceiros - Pessoa Jurídica",null,"3390.39.00",{"$f":"'STP Jurídica'!E12","v":0},{"$error":"#DIV/0!"}]
["Subtotal Custeio",null,null,null,{"$f":"SUM(E10:E18)","v":0}]
["2. Despesas Investimentos ","2.1. Equipamentos e Material Permanente",null,"4490.52.00",{"$f":"Equipts.!E24","v":0},{"$f":"IF(10,E20*1/E$23*(($F$30-$F$27)-$F$24),E20*1/E$23*($F$30-$F$24))","v":{"$error":"#DIV/0!"}}]
[null,"2.2. Obras e Instalações ",null,"4490.51.00",{"$f":"'Obras e Inst.'!Q12","v":0},{"$error":"#DIV/0!"}]
[null,"Subtotal Investimentos",null,null,{"$f":"SUM(E20:E21)","v":0}]
["Subtotal Despesas Projeto (Custeio + Investimento)",null,null,null,{"$f":"E19+E22","v":0}]
["3.","1.6.1. Remuneração Cabível à Fundação de Apoio pela Gestão do Acordo/Convênio",null,"3390.39.99",{"$f":"E23*F24","v":0},0.05]
["Subtotal Remuneração à Fundação de Apoio",null,null,null,{"$f":"SUM(E24)","v":0}]
["Subtotal Custeio +Investimento+ Remuneração à Fundação de Apoio",null,null,null,{"$f":"SUM(E19,E22,E25)","v":0},{"$f":"100%-F27","v":1}]
["4.","1.7. Custos Imputados - UEM",null,"3390.93.00",{"$f":"E26*F27","v":0},{"$f":"'Custos Imputados'!D7","v":0}]
["Subtotal Custos Imputados - UEM",null,null,null,{"$f":"SUM(E27)","v":0}]
[]
["TOTAL GLOBAL DO PROJETO",null,null,null,{"$f":"SUM(E19,E22,E25,E28)","v":0},{"$f":"SUM(F27,F26)","v":1}]

{"sheet":"Diárias e Passag.","index":1,"n_rows":82,"n_cols":6,"rows_kept":82,"cut":false,"hidden":false,"merged":[[39,3,39,5],[58,1,59,2],[58,3,58,5],[39,0,40,0],[39,1,40,1],[39,2,40,2],[49,0,49,4],[52,0,52,1],[54,0,54,1],[58,0,59,0],[33,1,33,2],[34,1,34,2],[35,1,35,2],[36,0,36,4],[38,0,38,5],[28,1,28,2],[29,1,29,2],[30,1,30,2],[31,1,31,2],[32,1,32,2],[18,0,18,4],[21,0,21,1],[23,0,23,1],[26,0,27,0],[26,1,27,2],[26,3,26,5],[10,0,10,4],[13,0,14,0],[13,1,14,1],[13,2,14,2],[13,3,13,5],[7,1,7,2],[8,1,8,2],[9,1,9,2],[0,0,0,5],[1,0,1,5],[2,0,2,5],[5,0,6,0],[5,1,6,2],[5,3,5,5],[65,1,65,2],[66,1,66,2],[81,0,81,4],[84,0,84,1],[86,0,86,1],[67,1,67,2],[68,0,68,4],[70,0,70,5],[71,0,72,0],[71,1,72,1],[71,2,72,2],[71,3,71,5],[60,1,60,2],[61,1,61,2],[62,1,62,2],[63,1,63,2],[64,1,64,2]]}
["PLANO DE APLICAÇÃO "]
["1. OUTRAS DESPESAS DE CUSTEIO"]
[]
[]
["1.1. CUSTEIO - Diárias",null,null,null,null,"PAG 1"]
["Subelemento de Despesa","Destino e Finalidade",null,"Quadro Resumo"]
[null,null,null,"Valor Unitário (R$)","Qtde","Subtotal "]
[null,null,null,null,null,{"$f":"D8*E8","v":0}]
[]
[]
["TOTAL",null,null,null,null,{"$f":"SUM(F8:F10)","v":0}]
[]
["1.2. CUSTEIO - Passagens e Despesas com Locomoção "]
["Subelemento de Despesa","Destino e Finalidade","Meio de Transporte","Quadro Resumo"]
[null,null,null,"Valor Unitário (R$)","Qtde","Subtotal "]
[null,null,null,null,null,{"$f":"D16*E16","v":0}]
[null,null,null,null,null,0]
[]
["TOTAL",null,null,null,null,{"$f":"SUM(F16:F18)","v":0}]
[]
[]
[]
[]
[]
[]
["1.1. CUSTEIO - Diárias"]
["Subelementos de Despesa","Destino e Finalidade",null,"Quadro Resumo"]
[null,null,null,"Valor Unitário (R$)","Qtde","Subtotal "]
[null,null,null,null,null,{"$f":"D29*E29","v":0}]
[null,null,null,null,null,0]
[null,null,null,null,null,0]
[null,null,null,null,null,0]
[null,null,null,null,null,0]
[null,null,null,null,null,0]
[null,null,null,null,null,0]
[null,null,null,null,null,0]
["TOTAL",null,null,null,null,{"$f":"SUM(F29:F36)","v":0}]
[]
["1.2. CUSTEIO - Passagens e Despesas com Locomoção "]
["Subelementos de Despesa","Destino e Finalidade","Meio de Transporte","Quadro Resumo"]
[null,null,null,"Valor Unitário (R$)","Qtde","Subtotal "]
[null,null,null,null,null,{"$f":"D42*E42","v":0}]
[null,null,null,null,null,0]
[null,null,null,null,null,0]
[null,null,null,null,null,0]
[null,null,null,null,null,0]
[null,null,null,null,null,0]
[null,null,null,null,null,0]
[null,null,null,null,null,0]
["TOTAL",null,null,null,null,{"$f":"SUM(F42:F49)","v":0}]
[]
[]
[]
[]
[]
[]
[]
["1.1. CUSTEIO - Diárias"]
["Subelementos de Despesa","Destino e Finalidade",null,"Quadro Resumo"]
[null,null,null,"Valor Unitário (R$)","Qtde","Subtotal "]
[null,null,null,null,null,{"$f":"D61*E61","v":0}]
[null,null,null,null,null,0]
[null,null,null,null,null,0]
[null,null,null,null,null,0]
[null,null,null,null,null,0]
[null,null,null,null,null,0]
[null,null,null,null,null,0]
[null,null,null,null,null,0]
["TOTAL",null,null,null,null,{"$f":"SUM(F61:F68)","v":0}]
[]
["1.2. CUSTEIO - Passagens e Despesas com Locomoção "]
["Subelementos de Despesa","Destino e Finalidade","Meio de Transporte","Quadro Resumo"]
[null,null,null,"Valor Unitário (R$)","Qtde","Subtotal "]
[null,null,null,null,null,{"$f":"D74*E74","v":0}]
[null,null,null,null,null,0]
[null,null,null,null,null,0]
[null,null,null,null,null,0]
[null,null,null,null,null,0]
[null,null,null,null,null,0]
[null,null,null,null,null,0]
[null,null,null,null,null,0]
["TOTAL",null,null,null,null,{"$f":"SUM(F74:F81)","v":0}]

{"sheet":"Mat. Cons.","index":2,"n_rows":54,"n_cols":7,"rows_kept":54,"cut":false,"hidden":false,"merged":[[242,0,242,3],[244,0,244,1],[246,0,246,1],[180,0,180,1],[182,0,182,1],[186,0,187,0],[186,1,187,1],[186,2,186,4],[210,0,210,3],[212,0,212,1],[178,0,178,3],[214,0,214,1],[218,0,219,0],[218,1,219,1],[218,2,218,4],[146,0,146,3],[148,0,148,1],[150,0,150,1],[154,0,155,0],[154,1,155,1],[154,2,154,4],[84,0,84,3],[86,0,86,1],[88,0,88,1],[122,1,123,1],[122,2,122,4],[91,0,92,0],[91,1,92,1],[91,2,91,4],[115,0,115,3],[117,0,117,1],[119,0,119,1],[122,0,123,0],[53,0,53,3],[55,0,55,1],[57,0,57,1],[60,0,61,0],[60,1,61,1],[60,2,60,4],[22,0,22,3],[24,0,24,1],[26,0,26,1],[29,0,30,0],[29,1,30,1],[29,2,29,4],[0,0,0,4],[1,0,1,4],[4,0,5,0],[4,1,5,1],[4,2,4,4]]}
["PLANO DE APLICAÇÃO ",null,null,null,null,{"$f":"SUM(E23,E54,E85,E116,E147,E179,E211,E243)","v":0},"ugf"]
["1. OUTRAS DESPESAS DE CUSTEIO",null,null,null,null,{"$f":"SUM(#REF!,#REF!,#REF!,#REF!,#REF!,#REF!,#REF!,#REF!)","v":{"$error":"#REF!"}},"rendimentos"]
[]
["1.3. CUSTEIO - Material de Consumo",null,null,null,"PAG 1"]
["Subelemento de Despesa","Descrição","Valor"]
[null,null,"Valor Unitário (R$)","Qtde","Subtotal "]
[null,null,null,null,{"$f":"C7*D7","v":0}]
[null,null,null,null,0]
[null,null,null,null,0]
[null,null,null,null,0]
[null,null,null,null,0]
[null,null,null,null,0]
[null,null,null,null,0]
[null,null,null,null,0]
[null,null,null,null,0]
[null,null,null,null,0]
[null,null,null,null,0]
[null,null,null,null,0]
[null,null,null,null,0]
[null,null,null,null,0]
[null,null,null,null,0]
[null,null,null,null,0]
["TOTAL",null,null,null,{"$f":"SUM(E7:E22)","v":0}]
[]
[]
[]
[]
[]
["1.3. CUSTEIO - Material de Consumo"]
["Subelementos de Despesa","Descrição","Valor"]
[null,null,"Valor Unitário (R$)","Qtde","Subtotal "]
[null,null,null,null,{"$f":"C32*D32","v":0}]
[null,null,null,null,0]
[null,null,null,null,0]
[null,null,null,null,0]
[null,null,null,null,0]
[null,null,null,null,0]
[null,null,null,null,0]
[null,null,null,null,0]
[null,null,null,null,0]
[null,null,null,null,0]
[null,null,null,null,0]
[null,null,null,null,0]
[null,null,null,null,0]
[null,null,null,null,0]
[null,null,null,null,0]
[null,null,null,null,0]
[null,null,null,null,0]
[null,null,null,null,0]
[null,null,null,null,0]
[null,null,null,null,0]
[null,null,null,null,0]
[null,null,null,null,0]
["TOTAL",null,null,null,{"$f":"SUM(E32:E53)","v":0}]

{"sheet":"STP Física e Tributos","index":3,"n_rows":83,"n_cols":8,"rows_kept":83,"cut":false,"hidden":false,"merged":[[88,0,88,1],[91,0,91,1],[72,3,72,5],[82,0,82,4],[44,1,45,1],[52,0,52,4],[53,0,53,1],[56,0,56,1],[58,1,59,1],[58,3,58,5],[68,0,68,4],[41,0,41,4],[44,0,45,0],[44,3,44,5],[58,0,59,0],[72,0,73,0],[72,1,73,1],[0,0,0,5],[1,0,1,5],[2,0,2,5],[31,0,31,4],[40,0,40,4]]}
["PLANO DE APLICAÇÃO ",null,null,null,null,null,{"$f":"F32+F69","v":0},"PF"]
["1. OUTRAS DESPESAS DE CUSTEIO",null,null,null,null,null,{"$f":"F53+F83","v":0},"TRIBUTOS"]
[null,null,null,null,null,null,{"$f":"SUM(#REF!,#REF!)","v":{"$error":"#REF!"}},"RENDIMENTOS PF"]
[null,null,null,null,null,null,{"$error":"#REF!"},"RENDIMENTOS TRIBUTOS"]
[]
[]
["1.4. CUSTEIO - Serviços de Terceiros Pessoa Física",null,null,null,null,"PAG 1"]
["       1.4.1 Pessoal  Interno (UEM)"]
["Subelementos  Despesa","Descrição e Finalidade","Carga Horária","Valor Unitário (R$)","Qtde","Subtotal "]
[null,null,null,null,null,{"$f":"E10*D10","v":0}]
[null,null,null,null,null,0]
[null,null,null,null,null,0]
[null,null,null,null,null,0]
[null,null,null,null,null,0]
[null,null,null,null,null,0]
[null,null,null,null,null,0]
[null,null,null,null,null,0]
[null,null,null,null,null,0]
[null,null,null,null,null,0]
[null,null,null,null,null,0]
[null,null,null,null,null,0]
[null,null,null,null,null,0]
[null,null,null,null,null,0]
[null,null,null,null,null,0]
[null,null,null,null,null,0]
[null,null,null,null,null,0]
[null,null,null,null,null,0]
[null,null,null,null,null,0]
[null,null,null,null,null,0]
[null,null,null,null,null,0]
[null,null,null,null,null,0]
["TOTAL",null,null,null,null,{"$f":"SUM(F10:F25)","v":0}]
[]
["       1.4.2 Pessoal  Externo"]
["Subelementos de Despesa","Descrição e Finalidade",null,"Valor Unitário (R$)","Qtde","Subtotal "]
[null,null,null,null,null,{"$f":"E36*D36","v":0}]
[null,null,null,null,null,0]
[null,null,null,null,null,0]
[null,null,null,null,null,0]
[null,null,null,null,null,0]
["TOTAL",null,null,null,null,{"$f":"SUM(F40:F40)","v":0}]
["1.4 SUBTOTAL - CUSTEIO - Serviço de Terceiro Pessoa Física",null,null,null,null,{"$f":"F32+F41","v":0}]
[]
["1.4.3. CUSTEIO - Obrigações Tributárias e Contributivas"]
["Subelementos de Despesa","Descrição e Finalidade",null,"Valor"]
[null,null,null,"Valor Unitário (R$)","Qtde","Subtotal "]
[null,null,null,{"$f":"F37","v":0},null,{"$f":"F37*20%","v":0}]
[null,null,null,0,null,0]
[null,null,null,0,null,0]
[null,null,null,0,null,0]
[null,null,null,0,null,0]
[null,null,null,0,null,0]
["TOTAL",null,null,null,null,{"$f":"SUM(F52)","v":0}]
[]
[]
[]
[]
["1.4. CUSTEIO - Serviços de Terceiros Pessoa Física"]
["Subelementos de Despesa","Descrição e Finalidade",null,"Valor"]
[null,null,null,"Valor Unitário (R$)","Qtde","Subtotal "]
[null,null,null,null,null,{"$f":"E61*D61","v":0}]
[null,null,null,null,null,0]
[null,null,null,null,null,0]
[null,null,null,null,null,0]
[null,null,null,null,null,0]
[null,null,null,null,null,0]
[null,null,null,null,null,0]
[null,null,null,null,null,0]
["TOTAL",null,null,null,null,{"$f":"SUM(F61:F68)","v":0}]
[]
[]
["1.4.1. CUSTEIO - Obrigações Tributárias e Contributivas"]
["Subelementos de Despesa","Descrição e Finalidade",null,"Valor"]
[null,null,null,"Valor Unitário (R$)","Qtde","Subtotal "]
[null,null,null,null,null,{"$f":"E75*D75","v":0}]
[null,null,null,null,null,0]
[null,null,null,null,null,0]
[null,null,null,null,null,0]
[null,null,null,null,null,0]
[null,null,null,null,null,0]
[null,null,null,null,null,0]
[null,null,null,null,null,0]
["TOTAL",null,null,null,null,{"$f":"SUM(F75:F82)","v":0}]

{"sheet":"Bolsas e Auxílios","index":4,"n_rows":59,"n_cols":9,"rows_kept":59,"cut":false,"hidden":false,"merged":[[12,0,12,5],[13,0,13,5],[14,0,14,5],[31,3,31,5],[31,6,33,6],[32,3,33,3],[32,4,32,5],[22,0,22,5],[25,0,25,1],[28,0,28,1],[31,0,33,0],[31,1,33,1],[21,0,21,5],[15,0,17,0],[15,1,15,2],[15,3,15,5],[7,1,8,1],[7,2,8,2],[6,3,6,5],[7,4,7,5],[0,0,0,6],[1,0,1,6],[2,0,2,6],[6,0,8,0],[6,1,6,2],[6,6,8,6],[7,3,8,3],[63,0,63,1],[48,1,49,3],[50,1,50,3],[51,1,51,3],[52,1,52,3],[53,1,53,3],[54,1,54,3],[55,1,55,3],[56,1,56,3],[57,1,57,3],[58,0,58,5],[59,0,59,1],[60,0,60,1],[42,0,42,5],[44,0,44,4],[46,0,46,5],[47,0,47,5],[48,0,49,0],[48,4,49,4],[48,5,48,6],[15,6,17,6],[16,1,17,1],[16,2,17,2],[16,3,17,3],[16,4,16,5]]}
["PLANO DE APLICAÇÃO ",null,null,null,null,null,null,{"$f":"SUM(G13,G43)","v":{"$error":"#REF!"}},"BOLSA "]
["1. OUTRAS DESPESAS DE CUSTEIO",null,null,null,null,null,null,{"$f":"SUM(G23,G59)","v":{"$error":"#REF!"}},"AUXILIO RENDIMENTO"]
[null,null,null,null,null,null,null,{"$f":"SUM(#REF!,#REF!)","v":{"$error":"#REF!"}},"RENDIMENTOS BOLSA"]
[null,null,null,null,null,null,null,{"$error":"#REF!"},"RENDIMENTOS AUXILIO"]
[]
["1.5. CUSTEIO - Bolsas"]
["Subelemento de Despesa","Categoria da Bolsa",null,"Valor",null,null,"Subtotal "]
[null,"Modalidade de Bolsa","Formação","Valor Unitário (R$)","Quantidade"]
[null,null,null,null,"Bolsas","Meses"]
[null,null,null,null,null,null,{"$f":"D10*F10","v":0}]
[null,null,null,null,null,null,{"$f":"D11*F11","v":0}]
[null,null,null,null,null,null,{"$f":"D12*F12","v":0}]
["TOTAL",null,null,null,null,null,{"$f":"SUM(G10:G12)","v":0}]
[]
["1.5.1. CUSTEIO - Auxílio Financeiro"]
["Subelemento de Despesa","Categoria da Bolsa",null,"Valor",null,null,"Subtotal "]
[null,"Modalidade de Bolsa","Formação","Valor Unitário (R$)","Quantidade"]
[null,null,null,null,"Bolsas","Meses"]
[null,null,null,null,null,null,{"$f":"D19*F19","v":0}]
[null,null,null,null,null,null,0]
[null,null,null,null,null,null,0]
["TOTAL",null,null,null,null,null,{"$f":"SUM(G19:G21)","v":0}]
["TOTAL",null,null,null,null,null,{"$f":"G13+G22","v":0}]
[]
[]
[]
[]
[]
[]
[]
["1.5. CUSTEIO - Bolsas"]
["Subelementos de Despesa","Categoria da Bolsa",null,"Valor",null,null,"Subtotal "]
[null,null,null,"Valor Unitário (R$)","Quantidade"]
[null,null,null,null,"Bolsas","Meses"]
[null,null,null,null,null,null,{"$f":"#REF!*D35","v":{"$error":"#REF!"}}]
[null,null,null,null,null,null,{"$f":"#REF!*D36","v":{"$error":"#REF!"}}]
[null,null,null,null,null,null,{"$f":"#REF!*D37","v":{"$error":"#REF!"}}]
[null,null,null,null,null,null,{"$f":"#REF!*D38","v":{"$error":"#REF!"}}]
[null,null,null,null,null,null,{"$f":"#REF!*D39","v":{"$error":"#REF!"}}]
[null,null,null,null,null,null,{"$f":"#REF!*D40","v":{"$error":"#REF!"}}]
[null,null,null,null,null,null,{"$f":"#REF!*D41","v":{"$error":"#REF!"}}]
[null,null,null,null,null,null,{"$f":"#REF!*D42","v":{"$error":"#REF!"}}]
["TOTAL",null,null,null,null,null,{"$f":"SUM(G35:G42)","v":{"$error":"#REF!"}}]
[]
[]
[]
[]
["1.5.1. CUSTEIO - Auxílio Financeiro/Bolsas"]
["Subelementos de Despesa","Categoria da Bolsa",null,null,"Instituição ","Valor"]
[null,null,null,null,null,"Valor Unitário (R$)","Subtotal "]
[null,null,null,null,null,null,{"$f":"F51*#REF!","v":{"$error":"#REF!"}}]
[null,null,null,null,null,null,{"$f":"F52*#REF!","v":{"$error":"#REF!"}}]
[null,null,null,null,null,null,{"$f":"F53*#REF!","v":{"$error":"#REF!"}}]
[null,null,null,null,null,null,{"$f":"F54*#REF!","v":{"$error":"#REF!"}}]
[null,null,null,null,null,null,{"$f":"F55*#REF!","v":{"$error":"#REF!"}}]
[null,null,null,null,null,null,{"$f":"F56*#REF!","v":{"$error":"#REF!"}}]
[null,null,null,null,null,null,{"$f":"F57*#REF!","v":{"$error":"#REF!"}}]
[null,null,null,null,null,null,{"$f":"F58*#REF!","v":{"$error":"#REF!"}}]
["TOTAL",null,null,null,null,null,{"$f":"SUM(G51:G58)","v":{"$error":"#REF!"}}]

{"sheet":"STP Jurídica","index":5,"n_rows":20,"n_cols":7,"rows_kept":20,"cut":false,"hidden":false,"merged":[[131,0,131,3],[132,0,132,2],[137,0,137,1],[140,0,140,1],[93,0,93,3],[94,0,94,2],[99,0,99,1],[102,0,102,1],[107,0,108,0],[107,1,108,1],[107,2,107,4],[56,0,56,3],[57,0,57,2],[62,0,62,1],[65,0,65,1],[69,0,70,0],[69,1,70,1],[69,2,69,4],[11,0,11,3],[12,0,13,4],[14,2,14,4],[32,1,33,1],[32,2,32,4],[14,0,15,0],[14,1,15,1],[19,0,19,3],[20,0,20,2],[25,0,25,1],[28,0,28,1],[32,0,33,0],[0,0,0,4],[1,0,1,4],[5,0,6,0],[5,1,6,1],[5,2,5,4]]}
["PLANO DE APLICAÇÃO ",null,null,null,null,{"$f":"SUM(E20,E57,E94,E132)","v":0},"UGF"]
["1. OUTRAS DESPESAS DE CUSTEIO",null,null,null,null,{"$f":"#REF!+#REF!+#REF!+#REF!","v":{"$error":"#REF!"}},"RENDIMENTOS"]
[]
[]
["1.6. CUSTEIO - Serviços de Terceiros Pessoa Jurídica"]
["Subelemento de Despesa","Descrição e Finalidade","Valor"]
[null,null,"Valor Unitário (R$)","Qtde","Subtotal "]
[null,null,null,null,{"$f":"C8*D8","v":0}]
[null,null,null,null,0]
[null,null,null,null,0]
[null,null,null,null,0]
["TOTAL",null,null,null,{"$f":"SUM(E8:E11)","v":0}]
["1.6.1. CUSTEIO - Remuneração Cabível à Fundação de Apoio pela Gestão do Acordo/Convênio"]
[]
["Subelemento de Despesa","Descrição e Finalidade","Valor"]
[null,null,"Porcentagem (%)","Custo Projeto","Subtotal "]
[null,null,null,{"$f":"C17*'Quadro Resumo'!E23","v":0},{"$f":"D17","v":0}]
[null,null,null,null,0]
[null,null,null,null,0]
["TOTAL",null,null,null,{"$f":"SUM(E17:E19)","v":0}]

{"sheet":"Equipts.","index":6,"n_rows":264,"n_cols":7,"rows_kept":264,"cut":false,"hidden":false,"merged":[[263,0,263,3],[267,0,267,1],[269,0,269,1],[197,0,197,1],[199,0,199,1],[203,0,204,0],[203,1,204,1],[203,2,203,4],[228,0,228,3],[232,0,232,1],[193,0,193,3],[234,0,234,1],[238,0,239,0],[238,1,239,1],[238,2,238,4],[159,0,159,3],[163,0,163,1],[165,0,165,1],[168,0,169,0],[168,1,169,1],[168,2,168,4],[91,0,91,3],[95,0,95,1],[97,0,97,1],[134,1,135,1],[134,2,134,4],[100,0,101,0],[100,1,101,1],[100,2,100,4],[125,0,125,3],[129,0,129,1],[131,0,131,1],[134,0,135,0],[57,0,57,3],[61,0,61,1],[63,0,63,1],[66,0,67,0],[66,1,67,1],[66,2,66,4],[23,0,23,3],[27,0,27,1],[29,0,29,1],[32,0,33,0],[32,1,33,1],[32,2,32,4],[0,0,0,4],[1,0,1,4],[2,0,2,4],[5,0,6,0],[5,1,6,1],[5,2,5,4]]}
["PLANO DE APLICAÇÃO ",null,null,null,null,{"$f":"SUM(E24,E58,E92,E126,E160,E194,E229,E264)","v":0},"UGF"]
["2. INVESTIMENTOS",null,null,null,null,{"$f":"#REF!+#REF!+#REF!+#REF!+#REF!+#REF!+#REF!+#REF!","v":{"$error":"#REF!"}},"RENDIMENTOS"]
[]
[]
["2.1. INVESTIMENTOS - Equipamentos e Material Permanente"]
["Subelementos de Despesa","Descrição e Especificação","Valor"]
[null,null,"Valor Unitário (R$)","Qtde","Subtotal "]
[null,null,null,null,{"$f":"C8*D8","v":0}]
[null,null,null,null,0]
[null,null,null,null,0]
[null,null,null,null,0]
[null,null,null,null,0]
[null,null,null,null,0]
[null,null,null,null,0]
[null,null,null,null,0]
[null,null,null,null,0]
[null,null,null,null,0]
[null,null,null,null,0]
[null,null,null,null,0]
[null,null,null,null,0]
[null,null,null,null,0]
[null,null,null,null,0]
[null,null,null,null,0]
["TOTAL",null,null,null,{"$f":"SUM(E8:E23)","v":0}]
[]
[]
[]
[]
[]
[]
[]
["2.1. INVESTIMENTOS - Equipamentos e Material Permanente"]
["Subelementos de Despesa","Descrição e Especificação","Valor"]
[null,null,"Valor Unitário (R$)","Qtde","Subtotal "]
[null,null,null,null,{"$f":"C35*D35","v":0}]
[null,null,null,null,0]
[null,null,null,null,0]
[null,null,null,null,0]
[null,null,null,null,0]
[null,null,null,null,0]
[null,null,null,null,0]
[null,null,null,null,0]
[null,null,null,null,0]
[null,null,null,null,0]
[null,null,null,null,0]
[null,null,null,null,0]
[null,null,null,null,0]
[null,null,null,null,0]
[null,null,null,null,0]
[null,null,null,null,0]
[null,null,null,null,0]
[null,null,null,null,0]
[null,null,null,null,0]
[null,null,null,null,0]
[null,null,null,null,0]
[null,null,null,null,0]
[null,null,null,null,0]
["TOTAL",null,null,null,{"$f":"SUM(E35:E57)","v":0}]
[]
[]
[]
[]
[]
[]
[]
["2.1. INVESTIMENTOS - Equipamentos e Material Permanente"]
["Subelementos de Despesa","Descrição e Especificação","Valor"]
[null,null,"Valor Unitário (R$)","Qtde","Subtotal "]
[null,null,null,null,{"$f":"C69*D69","v":0}]
[null,null,null,null,0]
[null,null,null,null,0]
[null,null,null,null,0]
[null,null,null,null,0]
[null,null,null,null,0]
[null,null,null,null,0]
[null,null,null,null,0]
[null,null,null,null,0]
[null,null,null,null,0]
[null,null,null,null,0]
[null,null,null,null,0]
[null,null,null,null,0]
[null,null,null,null,0]
[null,null,null,null,0]
[null,null,null,null,0]
[null,null,null,null,0]
[null,null,null,null,0]
[null,null,null,null,0]
[null,null,null,null,0]
[null,null,null,null,0]
[null,null,null,null,0]
[null,null,null,null,0]
["TOTAL",null,null,null,{"$f":"SUM(E69:E91)","v":0}]
[]
[]
[]
[]
[]
[]
[]
["2.1. INVESTIMENTOS - Equipamentos e Material Permanente"]
["Subelementos de Despesa","Descrição e Especificação","Valor"]
[null,null,"Valor Unitário (R$)","Qtde","Subtotal "]
[null,null,null,null,{"$f":"C103*D103","v":0}]
[null,null,null,null,0]
[null,null,null,null,0]
[null,null,null,null,0]
[null,null,null,null,0]
[null,null,null,null,0]
[null,null,null,null,0]
[null,null,null,null,0]
[null,null,null,null,0]
[null,null,null,null,0]
[null,null,null,null,0]
[null,null,null,null,0]
[null,null,null,null,0]
[null,null,null,null,0]
[null,null,null,null,0]
[null,null,null,null,0]
[null,null,null,null,0]
[null,null,null,null,0]
[null,null,null,null,0]
[null,null,null,null,0]
[null,null,null,null,0]
[null,null,null,null,0]
[null,null,null,null,0]
["TOTAL",null,null,null,{"$f":"SUM(E103:E125)","v":0}]
[]
[]
[]
[]
[]
[]
[]
["2.1. INVESTIMENTOS - Equipamentos e Material Permanente"]
["Subelementos de Despesa","Descrição e Especificação","Valor"]
[null,null,"Valor Unitário (R$)","Qtde","Subtotal "]
[null,null,null,null,{"$f":"C137*D137","v":0}]
[null,null,null,null,0]
[null,null,null,null,0]
[null,null,null,null,0]
[null,null,null,null,0]
[null,null,null,null,0]
[null,null,null,null,0]
[null,null,null,null,0]
[null,null,null,null,0]
[null,null,null,null,0]
[null,null,null,null,0]
[null,null,null,null,0]
[null,null,null,null,0]
[null,null,null,null,0]
[null,null,null,null,0]
[null,null,null,null,0]
[null,null,null,null,0]
[null,null,null,null,0]
[null,null,null,null,0]
[null,null,null,null,0]
[null,null,null,null,0]
[null,null,null,null,0]
[null,null,null,null,0]
["TOTAL",null,null,null,{"$f":"SUM(E137:E159)","v":0}]
[]
[]
[]
[]
[]
[]
[]
["2.1. INVESTIMENTOS - Equipamentos e Material Permanente"]
["Subelementos de Despesa","Descrição e Especificação","Valor"]
[null,null,"Valor Unitário (R$)","Qtde","Subtotal "]
[null,null,null,null,{"$f":"C171*D171","v":0}]
[null,null,null,null,0]
[null,null,null,null,0]
[null,null,null,null,0]
[null,null,null,null,0]
[null,null,null,null,0]
[null,null,null,null,0]
[null,null,null,null,0]
[null,null,null,null,0]
[null,null,null,null,0]
[null,null,null,null,0]
[null,null,null,null,0]
[null,null,null,null,0]
[null,null,null,null,0]
[null,null,null,null,0]
[null,null,null,null,0]
[null,null,null,null,0]
[null,null,null,null,0]
[null,null,null,null,0]
[null,null,null,null,0]
[null,null,null,null,0]
[null,null,null,null,0]
[null,null,null,null,0]
["TOTAL",null,null,null,{"$f":"SUM(E171:E193)","v":0}]
[]
[]
[]
[]
[]
[]
[]
[]
["2.1. INVESTIMENTOS - Equipamentos e Material Permanente"]
["Subelementos de Despesa","Descrição e Especificação","Valor"]
[null,null,"Valor Unitário (R$)","Qtde","Subtotal "]
[null,null,null,null,{"$f":"C206*D206","v":0}]
[null,null,null,null,0]
[null,null,null,null,0]
[null,null,null,null,0]
[null,null,null,null,0]
[null,null,null,null,0]
[null,null,null,null,0]
[null,null,null,null,0]
[null,null,null,null,0]
[null,null,null,null,0]
[null,null,null,null,0]
[null,null,null,null,0]
[null,null,null,null,0]
[null,null,null,null,0]
[null,null,null,null,0]
[null,null,null,null,0]
[null,null,null,null,0]
[null,null,null,null,0]
[null,null,null,null,0]
[null,null,null,null,0]
[null,null,null,null,0]
[null,null,null,null,0]
[null,null,null,null,0]
["TOTAL",null,null,null,{"$f":"SUM(E206:E228)","v":0}]
[]
[]
[]
[]
[]
[]
[]
[]
["2.1. INVESTIMENTOS - Equipamentos e Material Permanente"]
["Subelementos de Despesa","Descrição e Especificação","Valor"]
[null,null,"Valor Unitário (R$)","Qtde","Subtotal "]
[null,null,null,null,{"$f":"C241*D241","v":0}]
[null,null,null,null,0]
[null,null,null,null,0]
[null,null,null,null,0]
[null,null,null,null,0]
[null,null,null,null,0]
[null,null,null,null,0]
[null,null,null,null,0]
[null,null,null,null,0]
[null,null,null,null,0]
[null,null,null,null,0]
[null,null,null,null,0]
[null,null,null,null,0]
[null,null,null,null,0]
[null,null,null,null,0]
[null,null,null,null,0]
[null,null,null,null,0]
[null,null,null,null,0]
[null,null,null,null,0]
[null,null,null,null,0]
[null,null,null,null,0]
[null,null,null,null,0]
[null,null,null,null,0]
["TOTAL",null,null,null,{"$f":"SUM(E241:E263)","v":0}]

{"sheet":"Obras e Inst.","index":7,"n_rows":67,"n_cols":19,"rows_kept":67,"cut":false,"hidden":false,"merged":[[14,12,14,15],[15,13,15,15],[16,13,16,15],[17,13,17,15],[18,13,18,15],[19,13,19,15],[20,13,20,15],[14,5,15,10],[16,5,16,10],[11,0,11,15],[12,0,12,13],[6,2,6,11],[6,12,6,14],[7,2,7,11],[7,12,7,14],[8,2,8,11],[8,12,8,14],[9,12,9,14],[6,0,6,1],[7,0,7,1],[8,0,8,1],[9,0,9,1],[10,0,10,1],[0,0,0,16],[1,0,1,16],[4,2,5,11],[4,12,5,14],[4,15,5,15],[4,16,5,16],[9,2,9,11],[10,2,10,11],[10,12,10,14],[4,0,5,1],[63,0,63,14],[64,0,64,14],[65,0,65,14],[66,0,67,16],[69,0,69,2],[71,0,71,2],[56,0,56,14],[57,0,57,16],[58,0,58,14],[59,0,59,14],[60,0,60,14],[61,0,61,14],[62,0,62,14],[55,0,55,1],[44,2,44,11],[45,0,45,15],[46,0,46,13],[48,2,49,2],[48,3,49,3],[48,4,49,4],[48,12,48,15],[49,13,49,15],[48,5,49,10],[48,11,49,11],[50,5,50,10],[50,13,50,15],[51,5,51,10],[51,13,51,15],[52,13,52,15],[52,5,52,10],[53,5,53,10],[53,13,53,15],[54,5,54,10],[54,13,54,15],[55,5,55,10],[55,13,55,15],[44,0,44,1],[44,12,44,13],[48,0,48,1],[49,0,49,1],[50,0,50,1],[51,0,51,1],[52,0,52,1],[53,0,53,1],[54,0,54,1],[40,0,40,1],[40,2,40,11],[40,12,40,13],[41,2,41,11],[41,12,41,13],[42,2,42,11],[42,12,42,13],[43,0,43,1],[43,2,43,11],[43,12,43,13],[41,0,41,1],[42,0,42,1],[24,0,24,14],[25,0,25,14],[26,0,26,14],[27,0,27,14],[28,0,28,14],[29,0,29,14],[30,0,30,14],[31,0,32,16],[39,2,39,11],[39,12,39,13],[34,0,34,2],[37,2,38,11],[37,12,38,13],[37,14,38,14],[37,15,38,15],[37,16,38,16],[37,0,38,1],[39,0,39,1],[18,0,18,1],[18,5,18,10],[19,0,19,1],[19,5,19,10],[20,5,20,10],[20,0,20,1],[21,0,21,14],[22,0,22,16],[23,0,23,14],[14,0,14,1],[14,2,15,2],[14,3,15,3],[14,4,15,4],[14,11,15,11],[15,0,15,1],[16,0,16,1],[17,0,17,1],[17,5,17,10]]}
["PLANO DE APLICAÇÃO ",null,null,null,null,null,null,null,null,null,null,null,null,null,null,null,null,{"$f":"SUM(Q12,Q46)","v":0},"UGF"]
["2. INVESTIMENTOS",null,null,null,null,null,null,null,null,null,null,null,null,null,null,null,null,{"$f":"SUM(#REF!,#REF!)","v":{"$error":"#REF!"}},"RENDIMENTOS "]
[]
["2.2. INVESTIMENTOS - Obras e Instalações",null,null,null,null,null,null,null,null,null,null,null,null,null,null,null,"PAG 1"]
["Subelemento de Despesa",null,"Finalidade",null,null,null,null,null,null,null,null,null,"Valor m² \n(Referência)",null,null,"Qtde. \n(área, m²)","Total Previsto \n(R$)"]
[]
[null,null,"Obra 01:",null,null,null,null,null,null,null,null,null,null,null,null,null,{"$f":"M7*P7","v":0}]
[null,null,"Obra 02:",null,null,null,null,null,null,null,null,null,null,null,null,null,0]
[null,null,"Obra 03:",null,null,null,null,null,null,null,null,null,null,null,null,null,{"$f":"M9*P9","v":0}]
[null,null,"Obra 04:",null,null,null,null,null,null,null,null,null,null,null,null,null,0]
[null,null,"Obra 05:",null,null,null,null,null,null,null,null,null,null,null,null,null,0]
[" TOTAL",null,null,null,null,null,null,null,null,null,null,null,null,null,null,null,{"$f":"SUM(Q7:Q11)","v":0}]
[]
["Informações Técnicas Obrigatórias"]
["Responsabilidade Técnica",null,"CREA","CAU","CPF","Profissional Responsável",null,null,null,null,null,"Nº da Obra","Cartório Registro do Imóvel",null,null,null,"Certidão"]
["ART",null,null,null,null,null,null,null,null,null,null,null,"Matrícula","Logradouro",null,null,"Data Emissão "]
[null,null,null,null,null,null,null,null,null,null,null,"Obra 01"]
[null,null,null,null,null,null,null,null,null,null,null,"Obra 02"]
[null,null,null,null,null,null,null,null,null,null,null,"Obra 03"]
[null,null,null,null,null,null,null,null,null,null,null,"Obra 04"]
[null,null,null,null,null,null,null,null,null,null,null,"Obra 05"]
["Responsabilidade Técnica: deve-se escolher qual o tipo de documento técnico se refere à obra do convênio (ART ou RRT). "]
["Número: indicar o número da ART ou da RRT válida, relativa ao projeto que compreenda a construção, a reforma, ou a ampliação referente ao objeto da transferência. A consulta da validade da ART é realizada diretamente no banco de dados do CREA (Conselho Regional de Engenharia e Agronomia). "]
["Registro CREA/CAU: informar o número do registro no CREA ou no CAU (Conselho de Arquitetura e Urbanismo) do responsável pela emissão da respectiva ART ou RRT, respectivamente. "]
["CPF: informar o número do CPF do profissional técnico responsável pela emissão do documento. "]
["Profissional Responsável: informar o nome do profissional técnico responsável pela emissão do documento. "]
["A certidão do imóvel será informada através do preenchimento dos seguintes campos: "]
["Matrícula do imóvel / Logradouro: indicar o número da matrícula do registro do imóvel onde será realizada a obra objeto da transferência. "]
["Cartório de registro de imóveis: indicar o cartório e correspondente jurisdição onde fica registrado o imóvel referente à transferência. "]
["Data de emissão da certidão: informar a data em que a certidão atualizada do imóvel foi emitida e consta no próprio documento. "]
["Data de validade da certidão: informar a data de validade da certidão atualizada do imóvel e que consta no documento emitido. "]
["Observação: Nos casos de obras em vias de acesso, e.g. pavimentação asfáltica, deve-se informar no campo Matrícula do imóvel / Logradouro a rua ou a rodovia onde a obra será realizada. O campo Cartório de registro de imóveis servirá para informar os trechos ou quilometragens em que haverá obra.                                                                                                       As datas das certidões podem corresponder às datas de assinatura e vigência do instrumento de transferência. "]
[]
[]
[]
[]
["2.3. INVESTIMENTOS - Obras e Instalações"]
["Subelementos de Despesa",null,"Finalidade",null,null,null,null,null,null,null,null,null,"Instituição ",null,"Valor m² \n(Referência)","Qtde. \n(área, m²)","Total Previsto \n(R$)"]
[]
[null,null,"Obra 07: ",null,null,null,null,null,null,null,null,null,null,null,null,null,{"$f":"O40*P40","v":0}]
[null,null,"Obra 08:",null,null,null,null,null,null,null,null,null,null,null,null,null,{"$f":"O41*P41","v":0}]
[null,null,"Obra 09:",null,null,null,null,null,null,null,null,null,null,null,null,null,0]
[null,null,"Obra 10:",null,null,null,null,null,null,null,null,null,null,null,null,null,0]
[null,null,"Obra 11:",null,null,null,null,null,null,null,null,null,null,null,null,null,0]
[null,null,"Obra 12:",null,null,null,null,null,null,null,null,null,null,null,null,null,0]
[" TOTAL",null,null,null,null,null,null,null,null,null,null,null,null,null,null,null,{"$f":"SUM(Q40:Q45)","v":0}]
[]
["Informações Técnicas Obrigatórias"]
["Responsabilidade Técnica",null,"CREA","CAU","CPF","Profissional Responsável",null,null,null,null,null,"Nº da Obra","Cartório Registro do Imóvel",null,null,null,"Certidão"]
["ART",null,null,null,null,null,null,null,null,null,null,null,"Matrícula","Logradouro",null,null,"Data Emissão "]
[null,null,null,null,null,null,null,null,null,null,null,"Obra 07"]
[null,null,null,null,null,null,null,null,null,null,null,"Obra 08"]
[null,null,null,null,null,null,null,null,null,null,null,"Obra 09"]
[null,null,null,null,null,null,null,null,null,null,null,"Obra 10"]
[null,null,null,null,null,null,null,null,null,null,null,"Obra 11"]
[null,null,null,null,null,null,null,null,null,null,null,"Obra 12"]
["Responsabilidade Técnica: deve-se escolher qual o tipo de documento técnico se refere à obra do convênio (ART ou RRT). "]
["Número: indicar o número da ART ou da RRT válida, relativa ao projeto que compreenda a construção, a reforma, ou a ampliação referente ao objeto da transferência. A consulta da validade da ART é realizada diretamente no banco de dados do CREA (Conselho Regional de Engenharia e Agronomia). "]
["Registro CREA/CAU: informar o número do registro no CREA ou no CAU (Conselho de Arquitetura e Urbanismo) do responsável pela emissão da respectiva ART ou RRT, respectivamente. "]
["CPF: informar o número do CPF do profissional técnico responsável pela emissão do documento. "]
["Profissional Responsável: informar o nome do profissional técnico responsável pela emissão do documento. "]
["A certidão do imóvel será informada através do preenchimento dos seguintes campos: "]
["Matrícula do imóvel / Logradouro: indicar o número da matrícula do registro do imóvel onde será realizada a obra objeto da transferência. "]
["Cartório de registro de imóveis: indicar o cartório e correspondente jurisdição onde fica registrado o imóvel referente à transferência. "]
["Data de emissão da certidão: informar a data em que a certidão atualizada do imóvel foi emitida e consta no próprio documento. "]
["Data de validade da certidão: informar a data de validade da certidão atualizada do imóvel e que consta no documento emitido. "]
["Observação: Nos casos de obras em vias de acesso, e.g. pavimentação asfáltica, deve-se informar no campo Matrícula do imóvel / Logradouro a rua ou a rodovia onde a obra será realizada. O campo Cartório de registro de imóveis servirá para informar os trechos ou quilometragens em que haverá obra.                                                                                                       As datas das certidões podem corresponder às datas de assinatura e vigência do instrumento de transferência. "]

{"sheet":"Custos Imputados","index":8,"n_rows":23,"n_cols":7,"rows_kept":23,"cut":false,"hidden":false,"merged":[[21,1,21,3],[22,1,22,3],[7,0,7,3],[9,0,9,1],[0,0,0,4],[1,0,1,4],[4,0,5,0],[4,1,5,1],[4,2,4,4],[17,3,17,4],[18,3,18,4],[19,3,20,4],[19,1,20,1],[19,2,20,2]]}
["PLANO DE APLICAÇÃO ",null,null,null,null,{"$f":"SUM(E8,#REF!,#REF!,#REF!,#REF!,#REF!,#REF!,#REF!)","v":{"$error":"#REF!"}},"ugf"]
["1. OUTRAS DESPESAS DE CUSTEIO",null,null,null,null,{"$f":"SUM(#REF!,#REF!,#REF!,#REF!,#REF!,#REF!,#REF!,#REF!)","v":{"$error":"#REF!"}},"rendimentos"]
[]
["1.7. CUSTEIO - Custos Imputados",null,null,null,"PAG 1"]
["Subelemento de Despesa","Descrição","Valor"]
[null,null,"Valor Custeio + Remuneração à Fundação de Apoio","Qtde","Subtotal "]
[null,null,{"$f":"'Quadro Resumo'!E26","v":0},null,{"$f":"C7*D7","v":0}]
["TOTAL",null,null,null,{"$f":"SUM(E7:E7)","v":0}]
[]
[]
[]
["1.7.1 Distribuição dos Custos Imputados",null,null,null,2]
[]
[null,"Indique qual é o enquadramento do proponente (selecione a opção): "]
[null,"           a) Órgão da Administração descentralizada"]
[null,"            b) Órgão da Administração centralizada"]
[]
[null,"Subunidade ou órgãos proponentes","Centro","Orçamento Gerencial"]
[]
[null,{"$f":"E8*B19","v":0},{"$f":"E8*C19","v":0},{"$f":"E8*D19","v":0}]
[]
[null,"Nota: 1) Quando o proponente for projeto for órgão da administração descentralizada, considerar: 65% para subunidade ou órgão proponente, 15% para os centros pertinentes e 20% para compor o orçamento Gerencial (Resolução 130/2022, Art. 7º inciso I)"]
[null,"Nota: 2) Quando o proponente for projeto for órgão da administração centralizada, considerar: 50% para o órgão proponente, 50% para compor o orçamento Gerencial (Resolução 130/2022, Art. 7º inciso I)"]

{"sheet":"Cronograma Desembolso","index":9,"n_rows":110,"n_cols":17,"rows_kept":110,"cut":false,"hidden":false,"merged":[[10,0,11,0],[19,0,19,1],[20,0,20,16],[23,0,23,16],[25,3,25,14],[25,15,26,15],[25,16,26,16],[24,0,24,1],[24,2,24,14],[25,0,26,1],[25,2,26,2],[22,0,22,16],[0,0,0,16],[1,0,1,16],[2,0,2,1],[2,2,2,14],[3,0,4,1],[3,2,4,2],[3,3,3,14],[3,15,4,15],[3,16,4,16],[88,0,88,16],[89,0,89,16],[90,2,90,14],[108,0,108,16],[90,0,90,1],[91,0,92,1],[91,2,92,2],[91,3,91,14],[91,15,92,15],[91,16,92,16],[98,0,99,0],[107,0,107,1],[69,15,70,15],[69,16,70,16],[76,0,77,0],[85,0,85,1],[86,0,86,16],[68,0,68,1],[68,2,68,14],[69,0,70,1],[69,2,70,2],[69,3,69,14],[46,2,46,14],[66,0,66,16],[67,0,67,16],[47,3,47,14],[47,15,48,15],[47,16,48,16],[46,0,46,1],[47,0,48,1],[47,2,48,2],[54,0,55,0],[63,0,63,1],[64,0,64,16],[32,0,33,0],[41,0,41,1],[42,0,42,16],[44,0,44,16],[45,0,45,16]]}
["PLANO DE APLICAÇÃO "]
["CRONOGRAMA DE DESEMBOLSO"]
[]
["ELEMENTOS DE DESPESA",null,"VALOR PROJETO","*MÊS (ANO 1)",null,null,null,null,null,null,null,null,null,null,null,"TOTAL","SALDO "]
[null,null,null,"01","02","03","04","05","06","07","08","09","10","11","12"]
["3390. 1400","Diárias",{"$f":"'Quadro Resumo'!E10","v":0},null,null,null,null,null,null,null,null,null,null,null,null,{"$f":"SUM(D6:O6)","v":0},{"$f":"C6-P6","v":0}]
["3390. 3300","Passagens",{"$f":"'Quadro Resumo'!E11","v":0},null,null,null,null,null,null,null,null,null,null,null,null,0,{"$f":"C7-P7","v":0}]
["3390. 3000","Mat. Consumo",{"$f":"'Quadro Resumo'!E12","v":0},null,null,null,null,null,null,null,null,null,null,null,null,0,{"$f":"C8-P8","v":0}]
["3390. 3600","ST Pessoa Física",{"$f":"'Quadro Resumo'!E13","v":0},{"$f":"$C$9/60","v":0},{"$f":"$D$9","v":0},0,0,0,0,0,0,0,0,0,0,0,{"$f":"C9-P9","v":0}]
["3390. 4700","Obrigações Tributárias e Contributivas",{"$f":"'Quadro Resumo'!E15","v":0},null,null,null,null,null,null,null,null,null,null,null,null,0,0]
["3390. 1800","Bolsas",{"$f":"'Quadro Resumo'!E16","v":0},null,null,null,null,null,null,null,null,null,null,null,null,0,0]
[null,"Auxilio Financeiro",{"$f":"'Quadro Resumo'!E17","v":0},null,null,null,null,null,null,null,null,null,null,null,null,0,0]
["3390. 3900","ST Pessoa Jurídica",{"$f":"'Quadro Resumo'!E18","v":0},null,null,null,null,null,null,null,null,null,null,null,null,0,0]
["4490. 5200","Equipamentos e Mat. Permanente",{"$f":"'Quadro Resumo'!E20","v":0},null,null,null,null,null,null,null,null,null,null,null,null,0,0]
["4490. 5100","Obras e Instalações",{"$f":"'Quadro Resumo'!E21","v":0},null,null,null,null,null,null,null,null,null,null,null,null,0,0]
["3390. 3999","Remuneração à Fundação de Apoio",{"$f":"'Quadro Resumo'!E24","v":0},null,null,null,null,null,null,null,null,null,null,null,null,0,0]
[]
["3390. 9300","Custos Imputados - UEM",{"$f":"'Quadro Resumo'!E27","v":0},null,null,null,null,null,null,null,null,null,null,null,null,{"$f":"SUM(D18:O18)","v":0},{"$f":"C18-P18","v":0}]
[]
["TOTAL:",null,{"$f":"SUM(C6:C18)","v":0},0,0,0,0,0,0,0,0,0,0,0,0,0,0]
["* Entende-se por mês 1 (um) o mês de início das atividades do projeto."]
["** Definir valores a serem liberados mensalmente ao Projeto (em amarelo)"]
["PLANO DE APLICAÇÃO "]
["CRONOGRAMA DE DESEMBOLSO"]
[]
["ELEMENTOS DE DESPESA",null,"SALDO\nANO 1","MÊS (ANO 2)",null,null,null,null,null,null,null,null,null,null,null,"TOTAL","SALDO "]
[null,null,null,"01","02","03","04","05","06","07","08","09","10","11","12"]
["3390.1400","Diárias",{"$f":"Q6","v":0},null,null,null,null,null,null,null,null,null,null,null,null,{"$f":"SUM(D28:O28)","v":0},{"$f":"C28-P28","v":0}]
["3390.3300","Passagens",0,null,null,null,null,null,null,null,null,null,null,null,null,0,0]
["3390.3000","Mat. Consumo",0,null,null,null,null,null,null,null,null,null,null,null,null,0,0]
["3390.3600","ST Pessoa Física",0,{"$f":"$D$9","v":0},0,0,0,0,0,0,0,0,0,0,0,0,0]
["3390.4700","Obrigações Tributárias e Contributivas",0,null,null,null,null,null,null,null,null,null,null,null,null,0,0]
["3390.1800","Bolsas",0,null,null,null,null,null,null,null,null,null,null,null,null,0,0]
[null,"Auxilio Financeiro",0,null,null,null,null,null,null,null,null,null,null,null,null,0,0]
["3390.3900","ST Pessoa Jurídica",0,null,null,null,null,null,null,null,null,null,null,null,null,0,0]
["4490.5200","Equipamentos e Mat. Permanente",0,null,null,null,null,null,null,null,null,null,null,null,null,0,0]
["4490.5100","Obras e Instalações",0,null,null,null,null,null,null,null,null,null,null,null,null,0,0]
["3390.39.99","Remuneração à Fundação de Apoio",0,null,null,null,null,null,null,null,null,null,null,null,null,0,0]
[]
["33909300","Custos Imputados - UEM",{"$f":"Q18","v":0},null,null,null,null,null,null,null,null,null,null,null,null,{"$f":"SUM(D40:O40)","v":0},{"$f":"C40-P40","v":0}]
[]
["TOTAL:",null,{"$f":"SUM(C28:C40)","v":0},0,0,0,0,0,0,0,0,0,0,0,0,0,0]
["* Entende-se por mês 1 (um) o mês de início das atividades do projeto."]
["** Definir valores a serem liberados mensalmente ao Projeto (em amarelo)"]
["PLANO DE APLICAÇÃO "]
["CRONOGRAMA DE DESEMBOLSO"]
[]
["ELEMENTOS DE DESPESA",null,"SALDO\nANO 2","MÊS (ANO 3)",null,null,null,null,null,null,null,null,null,null,null,"TOTAL","SALDO "]
[null,null,null,"01","02","03","04","05","06","07","08","09","10","11","12"]
["3390. 1400","Diárias",{"$f":"Q28","v":0},null,null,null,null,null,null,null,null,null,null,null,null,{"$f":"SUM(D50:O50)","v":0},{"$f":"C50-P50","v":0}]
["3390. 3300","Passagens",0,null,null,null,null,null,null,null,null,null,null,null,null,0,0]
["3390. 3000","Mat. Consumo",0,null,null,null,null,null,null,null,null,null,null,null,null,0,0]
["3390. 3600","ST Pessoa Física",0,{"$f":"$D$9","v":0},0,0,0,0,0,0,0,0,0,0,0,0,0]
["3390. 4700","Obrigações Tributárias e Contributivas",0,null,null,null,null,null,null,null,null,null,null,null,null,0,0]
["3390. 1800","Bolsas",0,null,null,null,null,null,null,null,null,null,null,null,null,0,0]
[null,"Auxilio Financeiro",0,null,null,null,null,null,null,null,null,null,null,null,null,0,0]
["3390. 3900","ST Pessoa Jurídica",0,null,null,null,null,null,null,null,null,null,null,null,null,0,0]
["4490. 5200","Equipamentos e Mat. Permanente",0,null,null,null,null,null,null,null,null,null,null,null,null,0,0]
["4490. 5100","Obras e Instalações",0,null,null,null,null,null,null,null,null,null,null,null,null,0,0]
["3390. 3999","Remuneração à Fundação de Apoio",0,null,null,null,null,null,null,null,null,null,null,null,null,0,0]
[]
["3390. 9300","Custos Imputados - UEM",{"$f":"Q40","v":0},null,null,null,null,null,null,null,null,null,null,null,null,{"$f":"SUM(D62:O62)","v":0},{"$f":"C62-P62","v":0}]
[]
["TOTAL:",null,{"$f":"SUM(C50:C62)","v":0},0,0,0,0,0,0,0,0,0,0,0,0,0,0]
["* Entende-se por mês 1 (um) o mês de início das atividades do projeto."]
["** Definir valores a serem liberados mensalmente ao Projeto (em amarelo)"]
["PLANO DE APLICAÇÃO "]
["CRONOGRAMA DE DESEMBOLSO"]
[]
["ELEMENTOS DE DESPESA",null,"SALDO\nANO 3","MÊS (ANO 4)",null,null,null,null,null,null,null,null,null,null,null,"TOTAL","SALDO "]
[null,null,null,"01","02","03","04","05","06","07","08","09","10","11","12"]
["3390. 1400","Diárias",{"$f":"Q50","v":0},null,null,null,null,null,null,null,null,null,null,null,null,{"$f":"SUM(D72:O72)","v":0},{"$f":"C72-P72","v":0}]
["3390. 3300","Passagens",0,null,null,null,null,null,null,null,null,null,null,null,null,0,0]
["3390. 3000","Mat. Consumo",0,null,null,null,null,null,null,null,null,null,null,null,null,0,0]
["3390. 3600","ST Pessoa Física",0,{"$f":"$D$9","v":0},0,0,0,0,0,0,0,0,0,0,0,0,0]
["3390. 4700","Obrigações Tributárias e Contributivas",0,null,null,null,null,null,null,null,null,null,null,null,null,0,0]
["3390. 1800","Bolsas",0,null,null,null,null,null,null,null,null,null,null,null,null,0,0]
[null,"Auxilio Financeiro",0,null,null,null,null,null,null,null,null,null,null,null,null,0,0]
["3390. 3900","ST Pessoa Jurídica",0,null,null,null,null,null,null,null,null,null,null,null,null,0,0]
["4490. 5200","Equipamentos e Mat. Permanente",0,null,null,null,null,null,null,null,null,null,null,null,null,0,0]
["4490. 5100","Obras e Instalações",0,null,null,null,null,null,null,null,null,null,null,null,null,0,0]
["3390. 3999","Remuneração à Fundação de Apoio",0,null,null,null,null,null,null,null,null,null,null,null,null,0,0]
[]
["3390. 9300","Custos Imputados - UEM",{"$f":"Q62","v":0},null,null,null,null,null,null,null,null,null,null,null,null,{"$f":"SUM(D84:O84)","v":0},{"$f":"C84-P84","v":0}]
[]
["TOTAL:",null,{"$f":"SUM(C72:C84)","v":0},0,0,0,0,0,0,0,0,0,0,0,0,0,0]
["* Entende-se por mês 1 (um) o mês de início das atividades do projeto."]
["** Definir valores a serem liberados mensalmente ao Projeto (em amarelo)"]
["PLANO DE APLICAÇÃO "]
["CRONOGRAMA DE DESEMBOLSO"]
[]
["ELEMENTOS DE DESPESA",null,"SALDO\nANO 4","MÊS (ANO 5)",null,null,null,null,null,null,null,null,null,null,null,"TOTAL","SALDO "]
[null,null,null,"01","02","03","04","05","06","07","08","09","10","11","12"]
["3390. 1400","Diárias",{"$f":"Q72","v":0},null,null,null,null,null,null,null,null,null,null,null,null,{"$f":"SUM(D94:O94)","v":0},{"$f":"C94-P94","v":0}]
["3390. 3300","Passagens",0,null,null,null,null,null,null,null,null,null,null,null,null,0,0]
["3390. 3000","Mat. Consumo",0,null,null,null,null,null,null,null,null,null,null,null,null,0,0]
["3390. 3600","ST Pessoa Física",0,{"$f":"$D$9","v":0},0,0,0,0,0,0,0,0,0,0,0,0,0]
["3390. 4700","Obrigações Tributárias e Contributivas",0,null,null,null,null,null,null,null,null,null,null,null,null,0,0]
["3390. 1800","Bolsas",0,null,null,null,null,null,null,null,null,null,null,null,null,0,0]
[null,"Auxilio Financeiro",0,null,null,null,null,null,null,null,null,null,null,null,null,0,0]
["3390. 3900","ST Pessoa Jurídica",0,null,null,null,null,null,null,null,null,null,null,null,null,0,0]
["4490. 5200","Equipamentos e Mat. Permanente",0,null,null,null,null,null,null,null,null,null,null,null,null,0,0]
["4490. 5100","Obras e Instalações",0,null,null,null,null,null,null,null,null,null,null,null,null,0,0]
["3390. 3999","Remuneração à Fundação de Apoio",0,null,null,null,null,null,null,null,null,null,null,null,null,0,0]
[]
["3390. 9300","Custos Imputados - UEM",{"$f":"Q84","v":0},null,null,null,null,null,null,null,null,null,null,null,null,{"$f":"SUM(D106:O106)","v":0},{"$f":"C106-P106","v":0}]
[]
["TOTAL:",null,{"$f":"SUM(C94:C106)","v":0},0,0,0,0,0,0,0,0,0,0,0,0,0,0]
["* Entende-se por mês 1 (um) o mês de início das atividades do projeto."]
["** Definir valores a serem liberados mensalmente ao Projeto (em amarelo)"]